lending/lending_fUSD_20241120
["ID","MTS","AMOUNT","RATE_DAILY","PERIOD"]
[342788416,1732140782384,-1086.88,0.0005726,120]
[342788417,1732140782394,-500.0,0.0005726,120]
[342788418,1732140782404,-1158.88,0.0005726,120]
[342788419,1732140782414,-725.57,0.0005726,120]
[342788420,1732140782424,-7009.95,0.0005726,120]
[342788421,1732140782436,-842.19,0.0005726,120]
[342788422,1732140782446,-500.0,0.0005726,120]
[342788423,1732140782456,-500.0,0.0005726,120]
[342788424,1732140782468,-2713.37,0.0005726,120]
[342788425,1732140782478,-2674.97,0.0005726,120]
[342788426,1732140782488,-1095.19,0.0005726,120]
[342788427,1732140782497,-448.6582866,0.0005726,120]
[342788428,1732140782507,-3162.29,0.0005726,120]
[342788429,1732140782516,-500.0,0.0005726,120]
[342788430,1732140782526,-500.0,0.0005726,120]
[342788431,1732140782647,-5192.12,0.0005726,120]
[342788432,1732140782657,-6968.45,0.0005726,60]
[342788433,1732140782666,-500.0,0.0005726,120]
[342788434,1732140782677,-788.84,0.0005726,120]
[342788435,1732140782687,-500.0,0.0005726,120]
[342788436,1732140782696,-801.02,0.0005726,120]
[342788437,1732140782706,-1135.51,0.0005726,120]
[342788438,1732140782715,-500.0,0.0005726,120]
[342788439,1732140782724,-565.84,0.0005726,120]
[342788440,1732140782734,-736.59,0.0005726,120]
[342788441,1732140782743,-778.41,0.0005726,120]
[342788442,1732140782752,-2123.81,0.0005726,120]
[342788443,1732140782762,-1176.11,0.0005726,120]
[342788444,1732140782771,-500.0,0.0005726,120]
[342788445,1732140782781,-500.0,0.0005726,120]
[342788446,1732140782790,-6444.84,0.0005726,120]
[342788447,1732140782799,-840.5,0.0005726,120]
[342788448,1732140782808,-1149.75,0.0005726,120]
[342788449,1732140782817,-538.19,0.0005726,120]
[342788450,1732140782827,-1918.75,0.0005726,120]
[342788451,1732140782836,-527.39,0.0005726,120]
[342788452,1732140782846,-500.0,0.0005726,120]
[342788453,1732140782855,-846.33,0.0005726,120]
[342788454,1732140782864,-1437.44,0.0005726,120]
[342788455,1732140782874,-655.97,0.0005726,120]
[342788456,1732140782884,-613.35,0.0005726,120]
[342788457,1732140782894,-1217.61,0.0005726,120]
[342788458,1732140782903,-7358.45,0.0005726,120]
[342788459,1732140782912,-1149.18,0.0005726,120]
[342788460,1732140782922,-500.0,0.0005726,120]
[342788461,1732140782932,-924.66,0.0005726,120]
[342788462,1732140782942,-1147.11,0.0005726,120]
[342788463,1732140782951,-1368.4,0.0005726,120]
[342788464,1732140782962,-500.0,0.0005726,120]
[342788465,1732140782972,-1974.94,0.0005726,120]
[342788466,1732140782981,-13034.59,0.0005726,120]
[342788467,1732140782990,-17457.35,0.0005726,120]
[342788468,1732140782999,-2237.64,0.0005726,120]
[342788469,1732140783008,-500.0,0.0005726,120]
[342788470,1732140783017,-2737.65,0.0005726,120]
[342788471,1732140783027,-551.05,0.0005726,120]
[342788472,1732140783036,-2479.1,0.0005726,120]
[342788473,1732140783046,-500.0,0.0005726,120]
[342788474,1732140783055,-3077.78,0.0005726,120]
[342788475,1732140783065,-500.0,0.0005726,120]
[342788476,1732140783075,-4393.1,0.0005726,120]
[342788477,1732140783084,-656.88,0.0005726,120]
[342788478,1732140783093,-535.35,0.0005726,120]
[342788479,1732140783103,-1967.61,0.0005726,120]
[342788480,1732140783112,-1550.26,0.0005726,120]
[342788481,1732140783121,-500.0,0.0005726,120]
[342788482,1732140783131,-725.78,0.0005726,120]
[342788483,1732140783140,-5411.3,0.0005726,120]
[342788484,1732140783150,-996.23,0.0005726,120]
[342788485,1732140783165,-500.0,0.0005726,120]
[342788486,1732140783174,-500.0,0.0005726,120]
[342788487,1732140783183,-559.06,0.0005726,120]
[342788488,1732140783193,-1127.77,0.0005726,120]
[342788489,1732140783202,-570.31,0.0005726,120]
[342788490,1732140783212,-7043.87,0.0005726,120]
[342788491,1732140783224,-580.25,0.0005726,120]
[342788492,1732140783235,-500.0,0.0005726,120]
[342788493,1732140783244,-8863.78,0.0005726,120]
[342788494,1732140783254,-604.62,0.0005726,120]
[342788495,1732140783263,-1500.0,0.0005726,120]
[342788496,1732140783272,-2040.5,0.0005726,120]
[342788497,1732140783281,-2305.42,0.0005726,120]
[342788498,1732140783291,-762.69,0.0005726,120]
[342788499,1732140783300,-713.08,0.0005726,120]
[342788500,1732140783310,-1604.28,0.0005726,120]
[342788501,1732140783319,-550.06821709,0.0005726,120]
[342788502,1732140783329,-1101.03,0.0005726,120]
[342788503,1732140783338,-500.0,0.0005726,120]
[342788504,1732140783348,-500.0,0.0005726,120]
[342788505,1732140783358,-500.0,0.0005726,120]
[342788506,1732140783367,-1320.75,0.0005726,120]
[342788507,1732140783377,-1100.57,0.0005726,120]
[342788508,1732140783386,-500.0,0.0005726,120]
[342788509,1732140783396,-500.0,0.0005726,120]
[342788510,1732140783406,-500.0,0.0005726,120]
[342788511,1732140783415,-5594.76,0.0005726,120]
[342788512,1732140783424,-500.0,0.0005726,120]
[342788513,1732140783433,-561.2,0.0005726,120]
[342788514,1732140783443,-918.38,0.0005726,120]
[342788515,1732140783452,-3670.68,0.0005726,120]
[342788516,1732140783463,-500.0,0.0005726,120]
[342788517,1732140783474,-2335.45865019,0.00057294,120]
[342788518,1732140783483,-15000.0,0.0005744,30]
[342788519,1732140783493,-13229.6432732,0.000575,120]
[342788520,1732140783502,-1000.0,0.000575,120]
[342788521,1732140783511,-2000.0,0.000575,120]
[342788522,1732140783521,-480.0,0.000575,30]
[342788523,1732140783531,-30000.0,0.00057534,60]
[342788524,1732140783540,-3000.0,0.00057534,120]
[342788525,1732140783549,-1043.97988093,0.00057534,120]
[342788526,1732140783558,-500.0,0.00057534,7]
[342788527,1732140783567,-597.23,0.00057534,120]
[342788528,1732140783578,-500.0,0.00057534,120]
[342788529,1732140783587,-500.0,0.00057534,120]
[342788530,1732140783597,-500.0,0.00057534,120]
[342788531,1732140783606,-500.0,0.00057534,120]
[342788532,1732140783616,-1000.0,0.00057534,120]
[342788533,1732140783626,-500.0,0.00057534,120]
[342788534,1732140783636,-1874.48266163,0.00057534,120]
[342788535,1732140783646,-565.49808567,0.00057534,120]
[342788536,1732140783655,-500.0,0.00057534,120]
[342788537,1732140783668,-155.055593,0.00057534,120]
[342788538,1732140783677,-260.413462,0.00057534,120]
[342788539,1732140783687,-210.928221,0.00057534,120]
[342788540,1732140783696,-789.82,0.00057534,120]
[342788541,1732140783706,-907.52,0.00057534,120]
[342788542,1732140783717,-676.32,0.00057534,120]
[342788543,1732140783726,-690.77,0.00057534,120]
[342788544,1732140783736,-500.0,0.00057534,120]
[342788545,1732140783746,-500.0,0.00057534,120]
[342788546,1732140783756,-500.0,0.00057534,120]
[342788547,1732140783766,-500.0,0.00057534,120]
[342788548,1732140783777,-500.0,0.00057534,120]
[342788549,1732140783787,-500.0,0.00057534,120]
[342788550,1732140783797,-500.0,0.00057534,30]
[342788551,1732140783807,-500.0,0.00057534,120]
[342788552,1732140783816,-500.0,0.00057534,120]
[342788553,1732140783826,-802.91,0.00057534,120]
[342788554,1732140783836,-1078.99,0.00057534,120]
[342788555,1732140783845,-331.62505117,0.00057534,120]
[342788556,1732140783854,-1196.86,0.00057534,120]
[342788557,1732140783864,-1553.66,0.00057534,120]
[342788558,1732140783874,-182.61224441,0.00057534,120]
[342788559,1732140783883,-500.0,0.00057534,120]
[342788560,1732140783893,-500.0,0.00057534,120]
[342788561,1732140783902,-1468.02,0.00057534,120]
[342788562,1732140783912,-500.0,0.00057534,120]
[342788563,1732140783921,-1204.33,0.00057534,120]
[342788564,1732140783931,-500.0,0.00057534,120]
[342788565,1732140783941,-500.0,0.00057534,120]
[342788566,1732140783950,-689.54,0.00057534,120]
[342788567,1732140783960,-500.0,0.00057534,120]
[342788568,1732140783971,-602.76013883,0.00057534,120]
[342788569,1732140783981,-500.0,0.00057534,120]
[342788570,1732140783990,-500.0,0.00057534,120]
[342788571,1732140784000,-500.0,0.00057534,120]
[342788572,1732140784010,-500.0,0.00057534,7]
[342788573,1732140784019,-3362.7,0.00057534,120]
[342788574,1732140784029,-500.0,0.00057534,120]
[342788575,1732140784039,-500.0,0.00057534,120]
[342788576,1732140784048,-2907.27,0.00057534,120]
[342788577,1732140784057,-1034.08,0.00057534,120]
[342788578,1732140784067,-500.0,0.00057534,120]
[342788579,1732140784076,-500.0,0.00057534,120]
[342788580,1732140784086,-500.0,0.00057534,120]
[342788581,1732140784096,-500.0,0.00057534,120]
[342788582,1732140784106,-500.0,0.00057534,120]
[342788583,1732140784115,-500.0,0.00057534,120]
[342788584,1732140784124,-500.0,0.00057534,120]
[342788585,1732140784133,-577.45,0.00057534,120]
[342788586,1732140784143,-691.51,0.00057534,120]
[342788587,1732140784152,-500.0,0.00057534,120]
[342788588,1732140784165,-1141.42,0.00057534,120]
[342788589,1732140784174,-1067.52,0.00057534,120]
[342788590,1732140784182,-500.0,0.00057534,120]
[342788591,1732140784191,-500.0,0.00057534,120]
[342788592,1732140784201,-1047.06,0.00057534,120]
[342788593,1732140784210,-500.0,0.00057534,120]
[342788594,1732140784220,-500.0,0.00057534,2]
[342788595,1732140784230,-1588.94,0.00057534,120]
[342788596,1732140784241,-500.0,0.00057534,120]
[342788597,1732140784252,-500.0,0.00057534,14]
[342788598,1732140784262,-826.46,0.00057534,120]
[342788599,1732140784271,-500.0,0.00057534,120]
[342788600,1732140784280,-883.47,0.00057534,120]
[342788601,1732140784289,-500.0,0.00057534,120]
[342788602,1732140784299,-1125.72,0.00057534,120]
[342788603,1732140784308,-500.0,0.00057534,120]
[342788604,1732140784318,-489.28694592,0.00057534,120]
[342788605,1732140784327,-500.0,0.00057534,120]
[342788606,1732140784337,-1116.01,0.00057534,120]
[342788607,1732140784347,-1198.91,0.00057534,120]
[342788608,1732140784357,-500.0,0.00057534,120]
[342788609,1732140784366,-1410.51,0.00057534,120]
[342788610,1732140784375,-500.0,0.00057534,120]
[342788611,1732140784385,-508.72,0.00057534,120]
[342788612,1732140784395,-500.0,0.00057534,120]
[342788613,1732140784404,-501.02,0.00057534,120]
[342788614,1732140784414,-500.0,0.00057534,120]
[342788615,1732140784424,-854.5,0.00057534,120]
[342788616,1732140784434,-500.0,0.00057534,120]
[342788617,1732140784443,-923.86,0.00057534,120]
[342788618,1732140784453,-500.0,0.00057534,120]
[342788619,1732140784462,-500.0,0.00057534,60]
[342788620,1732140784473,-1843.46,0.00057534,120]
[342788621,1732140784482,-810.6,0.00057534,120]
[342788622,1732140784492,-500.0,0.00057534,120]
[342788623,1732140784501,-909.22,0.00057534,120]
[342788624,1732140784511,-500.0,0.00057534,120]
[342788625,1732140784520,-500.0,0.00057534,120]
[342788626,1732140784529,-500.0,0.00057534,120]
[342788627,1732140784538,-533.52,0.00057534,120]
[342788628,1732140784548,-2415.23,0.00057534,120]
[342788629,1732140784557,-972.8,0.00057534,120]
[342788630,1732140784566,-1624.46,0.00057534,120]
[342788631,1732140784575,-500.0,0.00057534,120]
[342788632,1732140784585,-500.0,0.00057534,120]
[342788633,1732140784595,-530.46,0.00057534,120]
[342788634,1732140784605,-730.89,0.00057534,120]
[342788635,1732140784615,-500.0,0.00057534,60]
[342788636,1732140784624,-615.39,0.00057534,120]
[342788637,1732140784634,-500.0,0.00057534,120]
[342788638,1732140784644,-500.0,0.00057534,120]
[342788639,1732140784653,-500.0,0.00057534,120]
[342788640,1732140784663,-506.95290447,0.00057534,120]
[342788641,1732140784672,-515.66,0.00057534,120]
[342788642,1732140784682,-500.0,0.00057534,120]
[342788643,1732140784691,-783.6,0.00057534,120]
[342788644,1732140784700,-1852.69,0.00057534,120]
[342788645,1732140784710,-713.08,0.00057534,120]
[342788646,1732140784720,-524.36,0.00057534,120]
[342788647,1732140784729,-500.0,0.00057534,120]
[342788648,1732140784739,-500.0,0.00057534,120]
[342788649,1732140784749,-500.0,0.00057534,120]
[342788650,1732140784759,-729.05,0.00057534,120]
[342788651,1732140784768,-500.0,0.00057534,120]
[342788652,1732140784778,-500.0,0.00057534,120]
[342788653,1732140784788,-2435.5,0.00057534,120]
[342788654,1732140784797,-521.8,0.00057534,120]
[342788655,1732140784807,-642.48,0.00057534,120]
[342788656,1732140784816,-849.85,0.00057534,120]
[342788657,1732140784825,-627.45,0.00057534,120]
[342788658,1732140784835,-500.0,0.00057534,120]
[342788659,1732140784845,-742.62,0.00057534,120]
[342788660,1732140784854,-858.26,0.00057534,120]
[342788661,1732140784864,-500.0,0.00057534,120]
[342788662,1732140784873,-500.0,0.00057534,120]
[342788663,1732140784883,-503.51,0.00057534,120]
[342788664,1732140784892,-505.74255937,0.00057534,120]
[342788665,1732140784902,-2800.08,0.00057534,120]
[342788666,1732140784912,-500.0,0.00057534,120]
[342788667,1732140784921,-500.0,0.00057534,120]
[342788668,1732140784930,-563.45,0.00057534,120]
[342788669,1732140784940,-500.0,0.00057534,120]
[342788670,1732140784950,-500.0,0.00057534,120]
[342788671,1732140784959,-1104.08,0.00057534,120]
[342788672,1732140784970,-500.0,0.00057534,120]
[342788673,1732140784981,-500.0,0.00057534,120]
[342788674,1732140784991,-1222.85,0.00057534,120]
[342788675,1732140785002,-500.0,0.00057534,120]
[342788676,1732140785011,-632.9457608,0.00057534,120]
[342788677,1732140785020,-1021.61,0.00057534,120]
[342788678,1732140785030,-578.33,0.00057534,120]
[342788679,1732140785039,-500.0,0.00057534,120]
[342788680,1732140785048,-1661.17,0.00057534,120]
[342788681,1732140785058,-318.49504999,0.00057534,120]
[342788682,1732140785069,-800.14,0.00057534,120]
[342788683,1732140785078,-500.0,0.00057534,120]
[342788684,1732140785088,-1090.19,0.00057534,120]
[342788685,1732140785097,-1054.3,0.00057534,120]
[342788686,1732140785106,-500.0,0.00057534,120]
[342788687,1732140785115,-1209.25,0.00057534,120]
[342788688,1732140785125,-391.80507108,0.00057534,120]
[342788689,1732140785134,-500.0,0.00057534,120]
[342788690,1732140785144,-1127.18,0.00057534,120]
[342788691,1732140785156,-500.0,0.00057534,120]
[342788692,1732140785169,-500.0,0.00057534,120]
[342788693,1732140785178,-1267.34,0.00057534,120]
[342788694,1732140785187,-2432.38,0.00057534,7]
[342788695,1732140785197,-1560.72,0.00057534,120]
[342788696,1732140785208,-655.09,0.00057534,120]
[342788697,1732140785217,-1047.78,0.00057534,120]
[342788698,1732140785227,-500.0,0.00057534,120]
[342788699,1732140785238,-500.0,0.00057534,120]
[342788700,1732140785248,-500.0,0.00057534,120]
[342788701,1732140785259,-1376.36,0.00057534,120]
[342788702,1732140785269,-758.47,0.00057534,120]
[342788703,1732140785279,-1218.68,0.00057534,120]
[342788704,1732140785289,-500.0,0.00057534,120]
[342788705,1732140785298,-1031.21,0.00057534,120]
[342788706,1732140785308,-746.97,0.00057534,120]
[342788707,1732140785317,-500.0,0.00057534,120]
[342788708,1732140785326,-1956.13,0.00057534,120]
[342788709,1732140785335,-859.85,0.00057534,120]
[342788710,1732140785344,-1530.02,0.00057534,120]
[342788711,1732140785354,-925.63,0.00057534,120]
[342788712,1732140785363,-626.84,0.00057534,120]
[342788713,1732140785371,-1089.2,0.00057534,120]
[342788714,1732140785381,-500.0,0.00057534,120]
[342788715,1732140785390,-746.22,0.00057534,120]
[342788716,1732140785399,-1753.04,0.00057534,120]
[342788717,1732140785409,-1615.28,0.00057534,120]
[342788718,1732140785419,-750.0,0.00057534,120]
[342788719,1732140785428,-500.0,0.00057534,120]
[342788720,1732140785438,-2808.16,0.00057534,120]
[342788721,1732140785447,-628.55,0.00057534,120]
[342788722,1732140785457,-2720.22,0.00057534,120]
[342788723,1732140785468,-1040.43,0.00057534,120]
[342788724,1732140785478,-679.38,0.00057534,120]
[342788725,1732140785487,-510.0255935,0.00057534,120]
[342788726,1732140785497,-1140.69,0.00057534,120]
[342788727,1732140785506,-579.85,0.00057534,120]
[342788728,1732140785516,-1233.54,0.00057534,120]
[342788729,1732140785525,-560.33,0.00057534,120]
[342788730,1732140785535,-1241.7,0.00057534,120]
[342788731,1732140785544,-673.6,0.00057534,120]
[342788732,1732140785553,-1595.79,0.00057534,120]
[342788733,1732140785563,-500.0,0.00057534,120]
[342788734,1732140785572,-690.2,0.00057534,120]
[342788735,1732140785582,-500.0,0.00057534,120]
[342788736,1732140785591,-614.35,0.00057534,120]
[342788737,1732140785600,-1420.27,0.00057534,120]
[342788738,1732140785610,-500.0,0.00057534,120]
[342788739,1732140785619,-500.0,0.00057534,120]
[342788740,1732140785629,-500.0,0.00057534,120]
[342788741,1732140785638,-500.0,0.00057534,120]
[342788742,1732140785647,-500.0,0.00057534,120]
[342788743,1732140785656,-500.0,0.00057534,120]
[342788744,1732140785666,-1747.91,0.00057534,120]
[342788745,1732140785676,-1026.85,0.00057534,120]
[342788746,1732140785686,-500.0,0.00057534,120]
[342788747,1732140785695,-500.0,0.00057534,120]
[342788748,1732140785704,-813.38,0.00057534,120]
[342788749,1732140785713,-1208.59,0.00057534,120]
[342788750,1732140785724,-1929.2,0.00057534,120]
[342788751,1732140785733,-509.94,0.00057534,120]
[342788752,1732140785742,-547.23,0.00057534,120]
[342788753,1732140785752,-2243.95,0.00057534,120]
[342788754,1732140785761,-983.72,0.00057534,120]
[342788755,1732140785770,-1133.87,0.00057534,120]
[342788756,1732140785779,-236.15813578,0.00057534,120]
[342788757,1732140785789,-500.0,0.00057534,120]
[342788758,1732140785798,-500.0,0.00057534,120]
[342788759,1732140785807,-302.72529287,0.00057534,120]
[342788760,1732140785816,-837.29,0.00057534,120]
[342788761,1732140785825,-500.0,0.00057534,120]
[342788762,1732140785835,-601.65,0.00057534,120]
[342788763,1732140785844,-252.57771603,0.00057534,120]
[342788764,1732140785853,-500.0,0.00057534,120]
[342788765,1732140785862,-500.0,0.00057534,120]
[342788766,1732140785871,-500.0,0.00057534,120]
[342788767,1732140785881,-1244.02,0.00057534,120]
[342788768,1732140785891,-500.0,0.00057534,120]
[342788769,1732140785900,-500.0,0.00057534,120]
[342788770,1732140785909,-581.48,0.00057534,120]
[342788771,1732140785918,-500.0,0.00057534,120]
[342788772,1732140785928,-912.77,0.00057534,120]
[342788773,1732140785938,-1640.54,0.00057534,120]
[342788774,1732140785947,-822.59,0.00057534,120]
[342788775,1732140785957,-500.0,0.00057534,120]
[342788776,1732140785966,-957.41,0.00057534,120]
[342788777,1732140785975,-3305.34,0.00057534,120]
[342788778,1732140785984,-546.92,0.00057534,120]
[342788779,1732140785993,-500.0,0.00057534,120]
[342788780,1732140786003,-646.51717467,0.00057534,120]
[342788781,1732140786012,-500.0,0.00057534,120]
[342788782,1732140786022,-1590.28,0.00057534,120]
[342788783,1732140786031,-467.41235745,0.00057534,120]
[342788784,1732140786040,-4503.54,0.00057534,120]
[342788785,1732140786050,-2459.56,0.00057534,120]
[342788786,1732140786059,-5054.97,0.00057534,120]
[342788787,1732140786069,-500.0,0.00057534,120]
[342788788,1732140786079,-500.0,0.00057534,120]
[342788789,1732140786088,-500.0,0.00057534,120]
[342788790,1732140786097,-1237.62,0.00057534,120]
[342788791,1732140786107,-500.0,0.00057534,120]
[342788792,1732140786116,-1805.81,0.00057534,120]
[342788793,1732140786126,-1705.69,0.00057534,120]
[342788794,1732140786135,-730.02,0.00057534,120]
[342788795,1732140786144,-452.50835226,0.00057534,120]
[342788796,1732140786155,-556.28,0.00057534,120]
[342788797,1732140786168,-1293.03,0.00057534,120]
[342788798,1732140786177,-735.83,0.00057534,120]
[342788799,1732140786187,-500.0,0.00057534,120]
[342788800,1732140786197,-875.45,0.00057534,120]
[342788801,1732140786207,-501.74156163,0.00057534,120]
[342788802,1732140786218,-2355.16,0.00057534,120]
[342788803,1732140786234,-529.9,0.00057534,120]
[342788804,1732140786243,-1626.59,0.00057534,120]
[342788805,1732140786253,-1065.14,0.00057534,120]
[342788806,1732140786262,-500.0,0.00057534,120]
[342788807,1732140786272,-1000.0,0.00057534,30]
[342788808,1732140786281,-899.71,0.00057534,120]
[342788809,1732140786291,-1031.07,0.00057534,120]
[342788810,1732140786300,-500.0,0.00057534,120]
[342788811,1732140786310,-2139.66,0.00057534,120]
[342788812,1732140786319,-1746.7,0.00057534,120]
[342788813,1732140786328,-500.0,0.00057534,120]
[342788814,1732140786338,-500.0,0.00057534,120]
[342788815,1732140786348,-500.0,0.00057534,120]
[342788816,1732140786357,-525.57,0.00057534,120]
[342788817,1732140786368,-1007.82,0.00057534,120]
[342788818,1732140786378,-525.94,0.00057534,120]
[342788819,1732140786387,-500.0,0.00057534,120]
[342788820,1732140786398,-500.0,0.00057534,120]
[342788821,1732140786408,-500.0,0.00057534,120]
[342788822,1732140786418,-800.11,0.00057534,120]
[342788823,1732140786428,-3332.16,0.00057534,120]
[342788824,1732140786437,-2450.69,0.00057534,120]
[342788825,1732140786447,-500.0,0.00057534,120]
[342788826,1732140786456,-1123.27,0.00057534,120]
[342788827,1732140786465,-1393.96,0.00057534,120]
[342788828,1732140786476,-967.57,0.00057534,120]
[342788829,1732140786485,-500.0,0.00057534,120]
[342788830,1732140786495,-1357.65,0.00057534,120]
[342788831,1732140786504,-500.0,0.00057534,120]
[342788832,1732140786513,-1642.87,0.00057534,120]
[342788833,1732140786522,-500.0,0.00057534,120]
[342788834,1732140786531,-1717.17,0.00057534,120]
[342788835,1732140786541,-1588.79,0.00057534,90]
[342788836,1732140786551,-500.0,0.00057534,120]
[342788837,1732140786561,-1853.26,0.00057534,120]
[342788838,1732140786571,-516.71998927,0.00057534,120]
[342788839,1732140786581,-500.0,0.00057534,120]
[342788840,1732140786591,-700.0,0.00057534,120]
[342788841,1732140786600,-479.40120073,0.00057534,120]
[342788842,1732140786610,-2546.22,0.00057534,120]
[342788843,1732140786619,-518.1544986,0.00057534,120]
[342788844,1732140786628,-2834.37,0.00057534,120]
[342788845,1732140786638,-500.0,0.00057534,120]
[342788846,1732140786647,-1334.03,0.00057534,120]
[342788847,1732140786657,-500.0,0.00057534,120]
[342788848,1732140786668,-500.0,0.00057534,120]
[342788849,1732140786678,-2885.23,0.00057534,120]
[342788850,1732140786687,-4453.81,0.00057534,120]
[342788851,1732140786696,-2241.05,0.00057534,120]
[342788852,1732140786707,-2217.98,0.00057534,120]
[342788853,1732140786718,-500.0,0.00057534,120]
[342788854,1732140786728,-500.0,0.00057534,120]
[342788855,1732140786738,-500.0,0.00057534,120]
[342788856,1732140786747,-517.17452165,0.00057534,120]
[342788857,1732140786756,-1402.45,0.00057534,60]
[342788858,1732140786882,-800.61,0.00057534,120]
[342788859,1732140786893,-500.0,0.00057534,120]
[342788860,1732140786902,-500.0,0.00057534,120]
[342788861,1732140786911,-932.27,0.00057534,120]
[342788862,1732140786920,-1004.07,0.00057534,120]
[342788863,1732140786930,-500.0,0.00057534,120]
[342788864,1732140786940,-2000.63,0.00057534,120]
[342788865,1732140786950,-703.55,0.00057534,120]
[342788866,1732140786960,-2241.76,0.00057534,120]
[342788867,1732140786970,-1132.68,0.00057534,120]
[342788868,1732140786980,-596.11,0.00057534,120]
[342788869,1732140786989,-794.52,0.00057534,120]
[342788870,1732140786999,-833.99,0.00057534,120]
[342788871,1732140787009,-2777.12,0.00057534,120]
[342788872,1732140787019,-1558.24,0.00057534,120]
[342788873,1732140787030,-1309.21,0.00057534,120]
[342788874,1732140787041,-293.0144101,0.00057534,120]
[342788875,1732140787050,-500.0,0.00057534,120]
[342788876,1732140787061,-500.0,0.00057534,120]
[342788877,1732140787070,-500.08,0.00057534,120]
[342788878,1732140787080,-500.0,0.00057534,120]
[342788879,1732140787091,-2539.87,0.00057534,120]
[342788880,1732140787101,-500.0,0.00057534,120]
[342788881,1732140787111,-500.0,0.00057534,120]
[342788882,1732140787120,-831.36,0.00057534,120]
[342788883,1732140787129,-500.0,0.00057534,120]
[342788884,1732140787140,-1743.89,0.00057534,120]
[342788885,1732140787151,-500.0,0.00057534,120]
[342788886,1732140787166,-500.0,0.00057534,120]
[342788887,1732140787178,-1365.28,0.00057534,120]
[342788888,1732140787187,-1229.75,0.00057534,120]
[342788889,1732140787199,-1290.22,0.00057534,120]
[342788890,1732140787208,-507.82,0.00057534,120]
[342788891,1732140787218,-500.0,0.00057534,120]
[342788892,1732140787230,-3045.72,0.00057534,120]
[342788893,1732140787240,-500.0,0.00057534,120]
[342788894,1732140787249,-916.6,0.00057534,120]
[342788895,1732140787258,-500.0,0.00057534,120]
[342788896,1732140787267,-500.0,0.00057534,120]
[342788897,1732140787276,-500.0,0.00057534,120]
[342788898,1732140787286,-610.75,0.00057534,120]
[342788899,1732140787295,-502.86,0.00057534,120]
[342788900,1732140787304,-504.52,0.00057534,120]
[342788901,1732140787314,-1278.95,0.00057534,120]
[342788902,1732140787323,-500.0,0.00057534,120]
[342788903,1732140787333,-500.0,0.00057534,120]
[342788904,1732140787344,-702.18,0.00057534,120]
[342788905,1732140787355,-500.0,0.00057534,120]
[342788906,1732140787364,-3583.6,0.00057534,120]
[342788907,1732140787374,-1685.95,0.00057534,120]
[342788908,1732140787383,-500.0,0.00057534,120]
[342788909,1732140787394,-5689.68,0.00057534,120]
[342788910,1732140787404,-1343.23,0.00057534,120]
[342788911,1732140787414,-500.0,0.00057534,120]
[342788912,1732140787424,-553.27,0.00057534,120]
[342788913,1732140787434,-500.0,0.00057534,120]
[342788914,1732140787443,-500.0,0.00057534,120]
[342788915,1732140787453,-500.0,0.00057534,120]